{"text_format":"1","workbook":"xlsx","n_sheets":3,"sheets":["TEMA","NOTA","Hoja1"],"not_rendered":{"charts":0,"images":1,"macros":1,"external_links":0,"defined_names":0,"comments":0,"pivot_tables":0},"unopened":[],"bounds":{"document_bytes":16777216,"sheet_cells":100000,"rows_first":2000,"rows_last":500,"rows_between":2000,"halvings":0,"cell_chars":16384,"cell_head_chars":4096},"cells_cut":0,"cells_raw":0,"read":"whole","date_system":"1900"}

{"sheet":"TEMA","index":0,"n_rows":3,"n_cols":1,"rows_kept":3,"cut":false,"hidden":false,"merged":[[0,0,1,16],[2,0,20,16]]}
[]
[]
["PRACTICA MACROS"]

{"sheet":"NOTA","index":1,"n_rows":18,"n_cols":6,"rows_kept":18,"cut":false,"hidden":false,"merged":[[0,5,1,9],[13,0,17,1],[2,0,2,3],[3,0,3,3],[0,0,0,3],[1,0,1,3]]}
["NOTA DE VENTA",null,null,null,null,"Instrucciones: Corrigue la macro desde el editor Visual Basic. centra los titulos"]
["RESTAURANTE SAN CARLOS"]
["Av. Universidad # 1450, Col. Anahuac, San Nicolas de los Garza"]
[]
["CANTIDAD","DESCRIPCIÓN","PRECIO","IMPORTE"]
[null,null,null,{"$f":"A6*C6","v":0}]
[null,null,null,{"$f":"A7*C7","v":0}]
[null,null,null,0]
[null,null,null,0]
[null,null,null,0]
[null,null,null,0]
[null,null,null,0]
[null,null,null,0]
[null,null,"SUBTOTAL",{"$f":"SUM(D6:D13)","v":0}]
[null,null,"IVA",{"$f":"D14*0.16","v":0}]
[null,null,"TOTAL",{"$f":"D14+D15","v":0}]
[null,null,"PAGO"]
[null,null,"CAMBIO",{"$f":"D17-D16","v":0}]

{"sheet":"Hoja1","index":2,"n_rows":18,"n_cols":4,"rows_kept":18,"cut":false,"hidden":false,"merged":[[2,0,2,3],[3,0,3,3],[13,0,17,1]]}
["NOTA DE VENTA"]
["RESTAURANTE SAN CARLOS"]
["Av. Universidad # 1450, Col. Anahuac, San Nicolas de los Garza"]
[]
["CANTIDAD","DESCRIPCIÓN","PRECIO","IMPORTE"]
[null,null,null,{"$f":"A6*C6","v":0}]
[null,null,null,{"$f":"A7*C7","v":0}]
[null,null,null,0]
[null,null,null,0]
[null,null,null,0]
[null,null,null,0]
[null,null,null,0]
[null,null,null,0]
[null,null,"SUBTOTAL",{"$f":"SUM(D6:D13)","v":0}]
[null,null,"IVA",{"$f":"D14*0.16","v":0}]
[null,null,"TOTAL",{"$f":"D14+D15","v":0}]
[null,null,"PAGO"]
[null,null,"CAMBIO",{"$f":"D17-D16","v":0}]